[Event "Titled Tuesday Blitz June 27 Early 2023"]
[White "Quirke, Jeffrey"]
[Black "Kopczynski, Michal"]
[WhiteFideId "2013029"]
[BlackFideId "1124200"]
[WhiteElo "2236"]
[BlackElo "2413"]
[Result "0-1"]
[Round "8"]
[TimeControl "180+2"]
[Date "2023.06.27"]
[WhiteClock "0:00:00"]
[BlackClock "0:00:23"]
[Board "135"]

1. e4 {[%clk 0:02:55]}  b6 {[%clk 0:02:59]} 2. d4 {[%clk 0:02:52]}  Bb7 {[%clk 0:02:59]} 3. Bd3 {[%clk 0:02:51]}  e6 {[%clk 0:03:00]} 4. Nf3 {[%clk 0:02:49]}  Nf6 {[%clk 0:03:00]} 5. Qe2 {[%clk 0:02:42]}  d5 {[%clk 0:02:59]} 6. exd5 {[%clk 0:02:38]}  Nxd5 {[%clk 0:03:00]} 7. O-O {[%clk 0:02:24]}  Nd7 {[%clk 0:02:59]} 8. c3 {[%clk 0:02:12]}  Be7 {[%clk 0:02:54]} 9. Nbd2 {[%clk 0:02:11]}  Nf4 {[%clk 0:02:51]} 10. Qe3 {[%clk 0:02:10]}  Nxd3 {[%clk 0:02:50]} 11. Qxd3 {[%clk 0:02:10]}  Nf6 {[%clk 0:02:48]} 12. Re1 {[%clk 0:02:08]}  Qd5 {[%clk 0:02:46]} 13. Nf1 {[%clk 0:02:04]}  O-O {[%clk 0:02:40]} 14. Qe2 {[%clk 0:01:32]}  c5 {[%clk 0:02:33]} 15. dxc5 {[%clk 0:01:24]}  Bxc5 {[%clk 0:02:32]} 16. Be3 {[%clk 0:01:24]}  Rad8 {[%clk 0:02:20]} 17. Bxc5 {[%clk 0:01:23]}  Qxc5 {[%clk 0:02:20]} 18. Ne5 {[%clk 0:01:19]}  h6 {[%clk 0:02:15]} 19. Rad1 {[%clk 0:01:15]}  Qa5 {[%clk 0:01:23]} 20. a3 {[%clk 0:01:02]}  Ne4 {[%clk 0:01:15]} 21. Nd3 {[%clk 0:00:50]}  Qg5 {[%clk 0:01:09]} 22. f3 {[%clk 0:00:44]}  Nf6 {[%clk 0:01:06]} 23. Qe3 {[%clk 0:00:31]}  Qxe3+ {[%clk 0:01:02]} 24. Nxe3 {[%clk 0:00:32]}  Rc8 {[%clk 0:00:38]} 25. Ne5 {[%clk 0:00:31]}  Rfd8 {[%clk 0:00:37]} 26. Kf2 {[%clk 0:00:30]}  Kf8 {[%clk 0:00:37]} 27. N3c4 {[%clk 0:00:14]}  Ke7 {[%clk 0:00:36]} 28. a4 {[%clk 0:00:04]}  Nd5 {[%clk 0:00:35]} 29. Ne3 {[%clk 0:00:02]}  Nf4 {[%clk 0:00:31]} 30. g3 {[%clk 0:00:02]}  Nh3+ {[%clk 0:00:29]} 31. Kg2 {[%clk 0:00:03]}  Ng5 {[%clk 0:00:30]} 32. N5c4 {[%clk 0:00:00]}  Bxf3+ {[%clk 0:00:23]} 0-1


[Site "https://www.chess.com"]

[Event "Titled Tuesday Blitz June 27 Early 2023"]
[White "Sariego Figueredo, Wilfredo"]
[Black "Hoffmann, Asa"]
[WhiteFideId "3500080"]
[BlackFideId "2001470"]
[WhiteElo "2218"]
[BlackElo "2400"]
[Result "0-1"]
[Round "8"]
[TimeControl "180+2"]
[Date "2023.06.27"]
[WhiteClock "0:01:21"]
[BlackClock "0:00:56"]
[Board "136"]

1. d4 {[%clk 0:02:59]}  Nf6 {[%clk 0:02:58]} 2. Bf4 {[%clk 0:03:00]}  c5 {[%clk 0:02:56]} 3. e3 {[%clk 0:03:00]}  Qb6 {[%clk 0:02:53]} 4. b3 {[%clk 0:02:59]}  d6 {[%clk 0:02:50]} 5. c3 {[%clk 0:02:57]}  g6 {[%clk 0:02:47]} 6. Nf3 {[%clk 0:02:57]}  Bg7 {[%clk 0:02:47]} 7. Na3 {[%clk 0:02:51]}  a6 {[%clk 0:02:45]} 8. Nc4 {[%clk 0:02:51]}  Qc7 {[%clk 0:02:43]} 9. Be2 {[%clk 0:02:48]}  Be6 {[%clk 0:02:40]} 10. O-O {[%clk 0:02:46]}  Nh5 {[%clk 0:02:39]} 11. Bg5 {[%clk 0:02:36]}  h6 {[%clk 0:02:39]} 12. Bh4 {[%clk 0:02:36]}  g5 {[%clk 0:02:34]} 13. Bg3 {[%clk 0:02:33]}  Nxg3 {[%clk 0:02:33]} 14. fxg3 {[%clk 0:02:31]}  b5 {[%clk 0:02:30]} 15. Ncd2 {[%clk 0:02:29]}  Nd7 {[%clk 0:02:25]} 16. e4 {[%clk 0:02:29]}  Nf6 {[%clk 0:02:20]} 17. d5 {[%clk 0:02:29]}  Bg4 {[%clk 0:02:16]} 18. Rc1 {[%clk 0:02:28]}  Nd7 {[%clk 0:02:13]} 19. h4 {[%clk 0:02:25]}  O-O-O {[%clk 0:02:02]} 20. Nh2 {[%clk 0:02:18]}  Bxe2 {[%clk 0:01:57]} 21. Qxe2 {[%clk 0:02:18]}  Bf6 {[%clk 0:01:55]} 22. h5 {[%clk 0:02:16]}  Kb7 {[%clk 0:01:51]} 23. a4 {[%clk 0:02:15]}  Qb6 {[%clk 0:01:47]} 24. Kh1 {[%clk 0:02:13]}  Rc8 {[%clk 0:01:42]} 25. axb5 {[%clk 0:02:06]}  axb5 {[%clk 0:01:42]} 26. c4 {[%clk 0:02:06]}  b4 {[%clk 0:01:41]} 27. Ng4 {[%clk 0:02:05]}  Ra8 {[%clk 0:01:40]} 28. Nxf6 {[%clk 0:02:04]}  Nxf6 {[%clk 0:01:39]} 29. Ra1 {[%clk 0:02:05]}  Ra3 {[%clk 0:01:36]} 30. Rxa3 {[%clk 0:02:04]}  bxa3 {[%clk 0:01:36]} 31. Ra1 {[%clk 0:02:04]}  Ra8 {[%clk 0:01:35]} 32. Qd1 {[%clk 0:01:58]}  Qb4 {[%clk 0:01:35]} 33. Kh2 {[%clk 0:01:53]}  Nd7 {[%clk 0:01:30]} 34. Nf3 {[%clk 0:01:49]}  f6 {[%clk 0:01:28]} 35. Qc2 {[%clk 0:01:47]}  Ra6 {[%clk 0:01:22]} 36. g4 {[%clk 0:01:43]}  Rb6 {[%clk 0:01:20]} 37. Nd2 {[%clk 0:01:42]}  Ne5 {[%clk 0:01:20]} 38. Qd1 {[%clk 0:01:37]}  Ra6 {[%clk 0:01:13]} 39. Ra2 {[%clk 0:01:35]}  Qc3 {[%clk 0:01:12]} 40. Nb1 {[%clk 0:01:28]}  Qd4 {[%clk 0:01:07]} 41. Qxd4 {[%clk 0:01:27]}  cxd4 {[%clk 0:01:07]} 42. Rxa3 {[%clk 0:01:25]}  Rxa3 {[%clk 0:01:01]} 43. Nxa3 {[%clk 0:01:26]}  d3 {[%clk 0:00:59]} 44. Kg3 {[%clk 0:01:21]}  d2 {[%clk 0:00:56]} 0-1


[Site "https://www.chess.com"]

[Event "Titled Tuesday Blitz June 27 Early 2023"]
[White "O`Gorman, Tom"]
[Black "Luxama, Jacques Muller"]
[WhiteFideId "2508249"]
[BlackFideId "11900113"]
[WhiteElo "2557"]
[BlackElo "2203"]
[Result "0-1"]
[Round "8"]
[TimeControl "180+2"]
[Date "2023.06.27"]
[WhiteClock "0:01:41"]
[BlackClock "0:01:57"]
[Board "139"]

1. c4 {[%clk 0:03:00]}  e6 {[%clk 0:02:59]} 2. Nf3 {[%clk 0:02:59]}  d5 {[%clk 0:02:58]} 3. g3 {[%clk 0:02:56]}  Nf6 {[%clk 0:02:58]} 4. Bg2 {[%clk 0:02:57]}  Be7 {[%clk 0:02:58]} 5. O-O {[%clk 0:02:58]}  O-O {[%clk 0:02:59]} 6. d4 {[%clk 0:02:57]}  a6 {[%clk 0:02:54]} 7. Qc2 {[%clk 0:02:53]}  dxc4 {[%clk 0:02:53]} 8. Qxc4 {[%clk 0:02:54]}  b5 {[%clk 0:02:53]} 9. Qc2 {[%clk 0:02:53]}  Bb7 {[%clk 0:02:53]} 10. Rd1 {[%clk 0:02:51]}  Nbd7 {[%clk 0:02:51]} 11. Nc3 {[%clk 0:02:50]}  Rc8 {[%clk 0:02:48]} 12. Bf4 {[%clk 0:02:40]}  c5 {[%clk 0:02:46]} 13. dxc5 {[%clk 0:02:38]}  Bxc5 {[%clk 0:02:47]} 14. Qb3 {[%clk 0:02:34]}  Qb6 {[%clk 0:02:44]} 15. e3 {[%clk 0:02:31]}  h6 {[%clk 0:02:39]} 16. h4 {[%clk 0:02:24]}  Rfe8 {[%clk 0:02:38]} 17. Ne5 {[%clk 0:02:22]}  Nxe5 {[%clk 0:02:34]} 18. Bxe5 {[%clk 0:02:22]}  Bxg2 {[%clk 0:02:14]} 19. Kxg2 {[%clk 0:02:23]}  Qb7+ {[%clk 0:02:08]} 20. Kg1 {[%clk 0:02:22]}  Ng4 {[%clk 0:02:03]} 21. Bd4 {[%clk 0:02:21]}  Bxd4 {[%clk 0:02:03]} 22. Rxd4 {[%clk 0:02:21]}  Ne5 {[%clk 0:02:03]} 23. Re4 {[%clk 0:01:41]}  Rxc3 {[%clk 0:01:57]} 0-1


[Site "https://www.chess.com"]

[Event "Titled Tuesday Blitz June 27 Early 2023"]
[White "Thecourseoisildur"]
[Black "Vaglio Munoz, Jaime"]
[BlackFideId "6500145"]
[WhiteElo "2488"]
[BlackElo "2294"]
[Result "0-1"]
[Round "8"]
[TimeControl "180+2"]
[Date "2023.06.27"]
[WhiteClock "0:00:01"]
[BlackClock "0:00:55"]
[Board "140"]

1. e4 {[%clk 0:03:00]}  c5 {[%clk 0:02:59]} 2. Nf3 {[%clk 0:03:00]}  Qa5 {[%clk 0:02:58]} 3. Nc3 {[%clk 0:02:54]}  a6 {[%clk 0:02:58]} 4. d4 {[%clk 0:02:47]}  b5 {[%clk 0:02:57]} 5. Bd2 {[%clk 0:02:43]}  b4 {[%clk 0:02:55]} 6. Nd5 {[%clk 0:02:42]}  e6 {[%clk 0:02:55]} 7. Ne3 {[%clk 0:02:40]}  cxd4 {[%clk 0:02:55]} 8. Nxd4 {[%clk 0:02:41]}  Bb7 {[%clk 0:02:55]} 9. Nc4 {[%clk 0:02:35]}  Qc7 {[%clk 0:02:54]} 10. e5 {[%clk 0:02:23]}  Nc6 {[%clk 0:02:52]} 11. Nxc6 {[%clk 0:02:21]}  Bxc6 {[%clk 0:02:49]} 12. Qg4 {[%clk 0:02:16]}  h5 {[%clk 0:02:43]} 13. Qg3 {[%clk 0:02:10]}  g6 {[%clk 0:02:30]} 14. Nd6+ {[%clk 0:02:04]}  Bxd6 {[%clk 0:02:28]} 15. exd6 {[%clk 0:02:05]}  Qa5 {[%clk 0:02:24]} 16. Qh4 {[%clk 0:02:00]}  Qe5+ {[%clk 0:02:19]} 17. Be3 {[%clk 0:01:57]}  f6 {[%clk 0:01:58]} 18. Bd3 {[%clk 0:01:50]}  g5 {[%clk 0:01:56]} 19. Qxb4 {[%clk 0:01:47]}  a5 {[%clk 0:01:47]} 20. Qd4 {[%clk 0:01:32]}  Qxd4 {[%clk 0:01:41]} 21. Bxd4 {[%clk 0:01:33]}  Bxg2 {[%clk 0:01:37]} 22. Rg1 {[%clk 0:01:32]}  Bf3 {[%clk 0:01:37]} 23. Rxg5 {[%clk 0:01:26]}  fxg5 {[%clk 0:01:34]} 24. Bxh8 {[%clk 0:01:25]}  Kf7 {[%clk 0:01:34]} 25. Be5 {[%clk 0:01:18]}  Rb8 {[%clk 0:01:32]} 26. Kd2 {[%clk 0:01:17]}  Nf6 {[%clk 0:01:28]} 27. Re1 {[%clk 0:01:06]}  Ng4 {[%clk 0:01:19]} 28. h3 {[%clk 0:00:52]}  Nxe5 {[%clk 0:01:17]} 29. Rxe5 {[%clk 0:00:52]}  Kf6 {[%clk 0:01:16]} 30. Rxa5 {[%clk 0:00:49]}  Rxb2 {[%clk 0:01:15]} 31. a4 {[%clk 0:00:37]}  Rb6 {[%clk 0:01:14]} 32. Ra6 {[%clk 0:00:31]}  Rb1 {[%clk 0:01:14]} 33. Ra7 {[%clk 0:00:27]}  Bc6 {[%clk 0:01:07]} 34. a5 {[%clk 0:00:27]}  g4 {[%clk 0:01:03]} 35. hxg4 {[%clk 0:00:26]}  h4 {[%clk 0:01:03]} 36. c4 {[%clk 0:00:13]}  h3 {[%clk 0:01:03]} 37. Bxb1 {[%clk 0:00:10]}  h2 {[%clk 0:01:03]} 38. g5+ {[%clk 0:00:06]}  Kxg5 {[%clk 0:01:00]} 39. f4+ {[%clk 0:00:05]}  Kxf4 {[%clk 0:00:59]} 40. a6 {[%clk 0:00:04]}  h1=Q {[%clk 0:00:59]} 41. Bd3 {[%clk 0:00:05]}  Qg2+ {[%clk 0:00:58]} 42. Kc3 {[%clk 0:00:05]}  Ke3 {[%clk 0:00:57]} 43. Bc2 {[%clk 0:00:03]}  Qg7+ {[%clk 0:00:57]} 44. Kb3 {[%clk 0:00:03]}  Qd4 {[%clk 0:00:57]} 45. Rc7 {[%clk 0:00:02]}  Qb6+ {[%clk 0:00:56]} 46. Kc3 {[%clk 0:00:02]}  Qxa6 {[%clk 0:00:56]} 47. Bb3 {[%clk 0:00:03]}  Qa5+ {[%clk 0:00:56]} 48. Kb2 {[%clk 0:00:03]}  Qe5+ {[%clk 0:00:54]} 49. Ka2 {[%clk 0:00:02]}  Qxd6 {[%clk 0:00:54]} 50. Rc8 {[%clk 0:00:03]}  Qd2+ {[%clk 0:00:54]} 51. Ka3 {[%clk 0:00:02]}  Qa5+ {[%clk 0:00:54]} 52. Kb2 {[%clk 0:00:03]}  Kd4 {[%clk 0:00:53]} 53. Rh8 {[%clk 0:00:02]}  Qc3+ {[%clk 0:00:54]} 54. Ka2 {[%clk 0:00:02]}  e5 {[%clk 0:00:54]} 55. Rh4+ {[%clk 0:00:01]}  e4 {[%clk 0:00:54]} 56. Rh2 {[%clk 0:00:02]}  Qa5+ {[%clk 0:00:55]} 57. Kb2 {[%clk 0:00:02]}  e3 {[%clk 0:00:55]} 58. Rh4+ {[%clk 0:00:02]}  Be4 {[%clk 0:00:55]} 59. Bc2 {[%clk 0:00:03]}  Qc3+ {[%clk 0:00:56]} 60. Kb1 {[%clk 0:00:03]}  Qxc2+ {[%clk 0:00:56]} 61. Ka1 {[%clk 0:00:03]}  Kc3 {[%clk 0:00:56]} 62. Rxe4 {[%clk 0:00:01]}  Qb2# {[%clk 0:00:55]} 0-1


[Site "https://www.chess.com"]

[Event "Titled Tuesday Blitz June 27 Early 2023"]
[White "Begunov, Konstantin"]
[Black "De Souza, Cristiano Gomes"]
[WhiteFideId "4118510"]
[BlackFideId "2151758"]
[WhiteElo "2428"]
[BlackElo "2252"]
[Result "1-0"]
[Round "8"]
[TimeControl "180+2"]
[Date "2023.06.27"]
[WhiteClock "0:00:29"]
[BlackClock "0:01:41"]
[Board "142"]

1. d4 {[%clk 0:02:50]}  Nf6 {[%clk 0:02:58]} 2. c4 {[%clk 0:02:50]}  g6 {[%clk 0:02:59]} 3. f3 {[%clk 0:02:50]}  Bg7 {[%clk 0:02:59]} 4. e4 {[%clk 0:02:50]}  d6 {[%clk 0:03:00]} 5. Nc3 {[%clk 0:02:51]}  O-O {[%clk 0:03:00]} 6. Be3 {[%clk 0:02:51]}  Nc6 {[%clk 0:03:00]} 7. Nge2 {[%clk 0:02:51]}  a6 {[%clk 0:03:01]} 8. a3 {[%clk 0:02:52]}  Rb8 {[%clk 0:03:01]} 9. b4 {[%clk 0:02:52]}  b5 {[%clk 0:03:01]} 10. cxb5 {[%clk 0:02:53]}  axb5 {[%clk 0:03:00]} 11. d5 {[%clk 0:02:53]}  Ne5 {[%clk 0:02:58]} 12. Nd4 {[%clk 0:02:53]}  Bd7 {[%clk 0:02:53]} 13. Ncxb5 {[%clk 0:02:53]}  c5 {[%clk 0:02:50]} 14. dxc6 {[%clk 0:02:52]}  Nxc6 {[%clk 0:02:50]} 15. Be2 {[%clk 0:02:51]}  Ne8 {[%clk 0:02:43]} 16. O-O {[%clk 0:02:37]}  Nc7 {[%clk 0:02:40]} 17. Nxc6 {[%clk 0:02:10]}  Bxc6 {[%clk 0:02:38]} 18. Nd4 {[%clk 0:02:10]}  Bd7 {[%clk 0:02:34]} 19. Qb3 {[%clk 0:01:52]}  Ne6 {[%clk 0:02:32]} 20. Rfd1 {[%clk 0:01:45]}  Nxd4 {[%clk 0:02:27]} 21. Bxd4 {[%clk 0:01:45]}  Bxd4+ {[%clk 0:02:27]} 22. Rxd4 {[%clk 0:01:46]}  Qb6 {[%clk 0:02:27]} 23. Qe3 {[%clk 0:01:46]}  Be6 {[%clk 0:02:25]} 24. Kf2 {[%clk 0:01:38]}  Rfc8 {[%clk 0:02:24]} 25. Rd2 {[%clk 0:01:26]}  Qb7 {[%clk 0:02:16]} 26. b5 {[%clk 0:01:17]}  Bc4 {[%clk 0:02:12]} 27. a4 {[%clk 0:01:14]}  Bxe2 {[%clk 0:02:12]} 28. Rxe2 {[%clk 0:01:13]}  Rc4 {[%clk 0:02:12]} 29. Rb2 {[%clk 0:01:10]}  Rbc8 {[%clk 0:02:10]} 30. b6 {[%clk 0:01:03]}  Rc2+ {[%clk 0:02:08]} 31. Rxc2 {[%clk 0:01:02]}  Rxc2+ {[%clk 0:02:08]} 32. Kg3 {[%clk 0:00:55]}  d5 {[%clk 0:02:04]} 33. a5 {[%clk 0:00:49]}  dxe4 {[%clk 0:02:02]} 34. Qxe4 {[%clk 0:00:49]}  Qb8+ {[%clk 0:02:02]} 35. Kh3 {[%clk 0:00:43]}  h5 {[%clk 0:02:00]} 36. b7 {[%clk 0:00:36]}  Qc7 {[%clk 0:01:41]} 37. Qxc2 {[%clk 0:00:29]} 1-0


[Site "https://www.chess.com"]

[Event "Titled Tuesday Blitz June 27 Early 2023"]
[White "Biriukov, Ilja"]
[Black "Ho, In Hei Henry"]
[WhiteFideId "4113373"]
[BlackFideId "6002552"]
[WhiteElo "2299"]
[BlackElo "2026"]
[Result "0-1"]
[Round "8"]
[TimeControl "180+2"]
[Date "2023.06.27"]
[WhiteClock "0:00:19"]
[BlackClock "0:00:43"]
[Board "148"]

1. c4 {[%clk 0:03:00]}  c5 {[%clk 0:02:58]} 2. Nc3 {[%clk 0:02:59]}  Nc6 {[%clk 0:02:55]} 3. g3 {[%clk 0:03:00]}  g6 {[%clk 0:02:53]} 4. Bg2 {[%clk 0:03:00]}  Bg7 {[%clk 0:02:53]} 5. e3 {[%clk 0:03:00]}  Nf6 {[%clk 0:02:53]} 6. Nge2 {[%clk 0:02:59]}  d6 {[%clk 0:02:53]} 7. O-O {[%clk 0:02:59]}  O-O {[%clk 0:02:52]} 8. d3 {[%clk 0:02:57]}  a6 {[%clk 0:02:52]} 9. a3 {[%clk 0:02:57]}  Rb8 {[%clk 0:02:52]} 10. Rb1 {[%clk 0:02:56]}  Bd7 {[%clk 0:02:53]} 11. b4 {[%clk 0:02:54]}  cxb4 {[%clk 0:02:52]} 12. axb4 {[%clk 0:02:53]}  b5 {[%clk 0:02:52]} 13. cxb5 {[%clk 0:02:41]}  axb5 {[%clk 0:02:51]} 14. Qb3 {[%clk 0:02:32]}  Ne5 {[%clk 0:02:47]} 15. Rd1 {[%clk 0:02:26]}  Be6 {[%clk 0:02:43]} 16. Qc2 {[%clk 0:02:23]}  Qb6 {[%clk 0:02:31]} 17. Nd4 {[%clk 0:02:15]}  Bd7 {[%clk 0:02:29]} 18. f4 {[%clk 0:02:12]}  Nc6 {[%clk 0:02:28]} 19. Ncxb5 {[%clk 0:01:43]}  Rfc8 {[%clk 0:02:22]} 20. Qd2 {[%clk 0:01:33]}  Ng4 {[%clk 0:01:46]} 21. h3 {[%clk 0:01:19]}  Nxd4 {[%clk 0:01:43]} 22. Nxd4 {[%clk 0:01:10]}  Nxe3 {[%clk 0:01:37]} 23. Kh2 {[%clk 0:00:24]}  Bxd4 {[%clk 0:01:20]} 24. Re1 {[%clk 0:00:21]}  Nxg2 {[%clk 0:01:18]} 25. Qxg2 {[%clk 0:00:20]}  Bf6 {[%clk 0:00:55]} 26. g4 {[%clk 0:00:19]}  e6 {[%clk 0:00:47]} 27. g5 {[%clk 0:00:19]}  Bc3 {[%clk 0:00:43]} 28. h4 {[%clk 0:00:19]} 0-1


[Site "https://www.chess.com"]

[Event "Titled Tuesday Blitz June 27 Early 2023"]
[White "Vargas Rodriguez, Wilver"]
[Black "Lehtosaari, Mauri"]
[WhiteFideId "3509672"]
[BlackFideId "501999"]
[WhiteElo "2145"]
[BlackElo "2481"]
[Result "0-1"]
[Round "8"]
[TimeControl "180+2"]
[Date "2023.06.27"]
[WhiteClock "0:00:00"]
[BlackClock "0:02:00"]
[Board "149"]

1. Nf3 {[%clk 0:03:00]}  d5 {[%clk 0:03:00]} 2. c4 {[%clk 0:02:59]}  Nf6 {[%clk 0:03:01]} 3. cxd5 {[%clk 0:02:57]}  c6 {[%clk 0:03:02]} 4. dxc6 {[%clk 0:02:57]}  Bg4 {[%clk 0:03:03]} 5. cxb7 {[%clk 0:02:55]}  Bxf3 {[%clk 0:03:03]} 6. gxf3 {[%clk 0:02:51]}  Nbd7 {[%clk 0:03:04]} 7. bxa8=Q {[%clk 0:02:51]}  Qxa8 {[%clk 0:03:04]} 8. Nc3 {[%clk 0:02:51]}  e6 {[%clk 0:03:05]} 9. d3 {[%clk 0:02:50]}  Bb4 {[%clk 0:03:06]} 10. Bd2 {[%clk 0:02:50]}  O-O {[%clk 0:03:07]} 11. Rg1 {[%clk 0:02:45]}  Bxc3 {[%clk 0:03:08]} 12. Bxc3 {[%clk 0:02:45]}  g6 {[%clk 0:03:09]} 13. Qd2 {[%clk 0:02:39]}  Nd5 {[%clk 0:03:08]} 14. Bg2 {[%clk 0:02:30]}  Rc8 {[%clk 0:03:03]} 15. f4 {[%clk 0:02:29]}  Qb8 {[%clk 0:02:59]} 16. Bxd5 {[%clk 0:02:27]}  exd5 {[%clk 0:03:00]} 17. Qe3 {[%clk 0:02:18]}  Re8 {[%clk 0:02:48]} 18. Qd4 {[%clk 0:02:15]}  f6 {[%clk 0:02:49]} 19. e3 {[%clk 0:02:06]}  Qb7 {[%clk 0:02:42]} 20. f5 {[%clk 0:02:01]}  Kf7 {[%clk 0:02:39]} 21. fxg6+ {[%clk 0:01:58]}  hxg6 {[%clk 0:02:40]} 22. Qh4 {[%clk 0:01:55]}  Kg7 {[%clk 0:02:34]} 23. O-O-O {[%clk 0:01:52]}  Rc8 {[%clk 0:02:30]} 24. Qd4 {[%clk 0:00:10]}  Qc6 {[%clk 0:02:19]} 25. Rg3 {[%clk 0:00:09]}  Kf7 {[%clk 0:02:17]} 26. Rdg1 {[%clk 0:00:08]}  g5 {[%clk 0:02:17]} 27. Rxg5 {[%clk 0:00:08]}  fxg5 {[%clk 0:02:17]} 28. Qg7+ {[%clk 0:00:08]}  Ke8 {[%clk 0:02:16]} 29. Qg8+ {[%clk 0:00:07]}  Nf8 {[%clk 0:02:16]} 30. Rxg5 {[%clk 0:00:06]}  Rc7 {[%clk 0:02:12]} 31. Rf5 {[%clk 0:00:04]}  Qd6 {[%clk 0:02:05]} 32. Kd2 {[%clk 0:00:03]}  d4 {[%clk 0:02:02]} 33. Bxd4 {[%clk 0:00:01]}  Qb4+ {[%clk 0:02:02]} 34. Bc3 {[%clk 0:00:00]}  Qe7 {[%clk 0:02:00]} 0-1


[Site "https://www.chess.com"]

[Event "Titled Tuesday Blitz June 27 Early 2023"]
[White "deloewre"]
[Black "Tikhonov, Viacheslav"]
[BlackFideId "44196407"]
[WhiteElo "2133"]
[BlackElo "2448"]
[Result "0-1"]
[Round "8"]
[TimeControl "180+2"]
[Date "2023.06.27"]
[WhiteClock "0:00:49"]
[BlackClock "0:00:34"]
[Board "150"]

1. c4 {[%clk 0:03:00]}  Nf6 {[%clk 0:02:57]} 2. Nc3 {[%clk 0:02:59]}  g6 {[%clk 0:02:54]} 3. e4 {[%clk 0:02:58]}  c5 {[%clk 0:02:53]} 4. e5 {[%clk 0:02:56]}  Ng8 {[%clk 0:02:53]} 5. d4 {[%clk 0:02:54]}  cxd4 {[%clk 0:02:54]} 6. Qxd4 {[%clk 0:02:53]}  Nc6 {[%clk 0:02:55]} 7. Qe4 {[%clk 0:02:46]}  Bg7 {[%clk 0:02:54]} 8. Nf3 {[%clk 0:02:45]}  f6 {[%clk 0:02:30]} 9. exf6 {[%clk 0:02:36]}  Nxf6 {[%clk 0:02:31]} 10. Qh4 {[%clk 0:02:35]}  O-O {[%clk 0:02:25]} 11. Be2 {[%clk 0:02:30]}  d6 {[%clk 0:02:20]} 12. O-O {[%clk 0:02:27]}  e5 {[%clk 0:02:20]} 13. Bg5 {[%clk 0:02:22]}  Qb6 {[%clk 0:02:05]} 14. b3 {[%clk 0:01:54]}  Bf5 {[%clk 0:01:36]} 15. Rad1 {[%clk 0:01:48]}  e4 {[%clk 0:01:33]} 16. Nd2 {[%clk 0:01:33]}  Nd4 {[%clk 0:01:22]} 17. Be3 {[%clk 0:01:24]}  Nxe2+ {[%clk 0:01:16]} 18. Nxe2 {[%clk 0:01:21]}  Qa5 {[%clk 0:01:14]} 19. Ng3 {[%clk 0:01:15]}  Qxa2 {[%clk 0:01:08]} 20. Ndxe4 {[%clk 0:01:12]}  Nxe4 {[%clk 0:01:06]} 21. Nxe4 {[%clk 0:01:11]}  Qxb3 {[%clk 0:00:48]} 22. Ng5 {[%clk 0:01:10]}  h5 {[%clk 0:00:44]} 23. Rxd6 {[%clk 0:01:02]}  Rad8 {[%clk 0:00:38]} 24. Rxd8 {[%clk 0:00:57]}  Rxd8 {[%clk 0:00:39]} 25. Ne6 {[%clk 0:00:56]}  Rd1 {[%clk 0:00:36]} 26. Nxg7 {[%clk 0:00:50]}  Rxf1+ {[%clk 0:00:33]} 27. Kxf1 {[%clk 0:00:49]}  Qd1# {[%clk 0:00:34]} 0-1


[Site "https://www.chess.com"]

[Event "Titled Tuesday Blitz June 27 Early 2023"]
[White "Georg, Heinz"]
[Black "Semenova, Alina"]
[WhiteFideId "4607295"]
[BlackFideId "24113875"]
[WhiteElo "2278"]
[BlackElo "2056"]
[Result "0-1"]
[Round "8"]
[TimeControl "180+2"]
[Date "2023.06.27"]
[WhiteClock "0:00:07"]
[BlackClock "0:00:13"]
[Board "152"]

1. e4 {[%clk 0:02:55]}  e6 {[%clk 0:02:59]} 2. c4 {[%clk 0:02:55]}  d5 {[%clk 0:02:56]} 3. cxd5 {[%clk 0:02:55]}  exd5 {[%clk 0:02:56]} 4. exd5 {[%clk 0:02:55]}  Nf6 {[%clk 0:02:56]} 5. Nc3 {[%clk 0:02:55]}  Nxd5 {[%clk 0:02:57]} 6. Bc4 {[%clk 0:02:54]}  Nxc3 {[%clk 0:02:55]} 7. bxc3 {[%clk 0:02:53]}  Be7 {[%clk 0:02:54]} 8. d4 {[%clk 0:02:52]}  O-O {[%clk 0:02:54]} 9. Ne2 {[%clk 0:02:53]}  a6 {[%clk 0:02:52]} 10. a4 {[%clk 0:02:52]}  Bf5 {[%clk 0:02:50]} 11. O-O {[%clk 0:02:51]}  Nd7 {[%clk 0:02:50]} 12. f4 {[%clk 0:02:47]}  Nb6 {[%clk 0:02:48]} 13. Bb3 {[%clk 0:02:47]}  c5 {[%clk 0:02:42]} 14. Ng3 {[%clk 0:02:46]}  Bd7 {[%clk 0:02:27]} 15. a5 {[%clk 0:02:45]}  c4 {[%clk 0:02:25]} 16. Ba2 {[%clk 0:02:35]}  Nd5 {[%clk 0:02:24]} 17. Bd2 {[%clk 0:02:30]}  Rc8 {[%clk 0:02:18]} 18. f5 {[%clk 0:02:27]}  Qc7 {[%clk 0:02:16]} 19. Qg4 {[%clk 0:01:48]}  f6 {[%clk 0:02:07]} 20. Nh5 {[%clk 0:01:43]}  Rf7 {[%clk 0:02:07]} 21. Rae1 {[%clk 0:01:40]}  Bd6 {[%clk 0:02:07]} 22. Kh1 {[%clk 0:01:33]}  Qxa5 {[%clk 0:01:57]} 23. Bb1 {[%clk 0:01:28]}  b5 {[%clk 0:01:49]} 24. Be4 {[%clk 0:01:26]}  Bc6 {[%clk 0:01:39]} 25. Qf3 {[%clk 0:01:26]}  Ne7 {[%clk 0:01:34]} 26. Bxc6 {[%clk 0:01:25]}  Nxc6 {[%clk 0:01:35]} 27. Qd5 {[%clk 0:01:23]}  Qc7 {[%clk 0:01:32]} 28. Re6 {[%clk 0:01:18]}  Bf8 {[%clk 0:01:27]} 29. Bf4 {[%clk 0:01:14]}  Qd7 {[%clk 0:01:16]} 30. Qe4 {[%clk 0:01:08]}  b4 {[%clk 0:01:11]} 31. d5 {[%clk 0:01:04]}  Ne7 {[%clk 0:01:02]} 32. d6 {[%clk 0:01:05]}  Nc6 {[%clk 0:00:44]} 33. Qxc4 {[%clk 0:01:04]}  bxc3 {[%clk 0:00:43]} 34. Rxf6 {[%clk 0:00:58]}  Nd8 {[%clk 0:00:38]} 35. Rxf7 {[%clk 0:00:55]}  Nxf7 {[%clk 0:00:36]} 36. Qe6 {[%clk 0:00:53]}  Qxe6 {[%clk 0:00:32]} 37. fxe6 {[%clk 0:00:53]}  Nxd6 {[%clk 0:00:32]} 38. Bc1 {[%clk 0:00:32]}  Re8 {[%clk 0:00:19]} 39. Re1 {[%clk 0:00:31]}  Nb5 {[%clk 0:00:17]} 40. Nf4 {[%clk 0:00:29]}  Bd6 {[%clk 0:00:17]} 41. Nd5 {[%clk 0:00:28]}  c2 {[%clk 0:00:14]} 42. g3 {[%clk 0:00:23]}  Nd4 {[%clk 0:00:13]} 43. e7 {[%clk 0:00:22]}  Nb3 {[%clk 0:00:09]} 44. Bf4 {[%clk 0:00:12]}  Bxf4 {[%clk 0:00:08]} 45. gxf4 {[%clk 0:00:13]}  c1=Q {[%clk 0:00:08]} 46. Rxc1 {[%clk 0:00:12]}  Nxc1 {[%clk 0:00:08]} 47. f5 {[%clk 0:00:11]}  Nd3 {[%clk 0:00:07]} 48. f6 {[%clk 0:00:12]}  gxf6 {[%clk 0:00:06]} 49. Nxf6+ {[%clk 0:00:11]}  Kf7 {[%clk 0:00:07]} 50. Nxe8 {[%clk 0:00:12]}  Kxe8 {[%clk 0:00:08]} 51. Kg2 {[%clk 0:00:12]}  Kxe7 {[%clk 0:00:08]} 52. Kf3 {[%clk 0:00:12]}  Ne5+ {[%clk 0:00:08]} 53. Ke4 {[%clk 0:00:12]}  Ng6 {[%clk 0:00:09]} 54. Kf5 {[%clk 0:00:12]}  a5 {[%clk 0:00:09]} 55. Ke4 {[%clk 0:00:13]}  Kf6 {[%clk 0:00:08]} 56. Kd4 {[%clk 0:00:08]}  Kg5 {[%clk 0:00:09]} 57. Kc4 {[%clk 0:00:08]}  Kh4 {[%clk 0:00:10]} 58. Kb5 {[%clk 0:00:09]}  Kh3 {[%clk 0:00:11]} 59. Kxa5 {[%clk 0:00:10]}  Kxh2 {[%clk 0:00:12]} 60. Kb4 {[%clk 0:00:10]}  Kg3 {[%clk 0:00:12]} 61. Kc3 {[%clk 0:00:07]}  h5 {[%clk 0:00:13]} 0-1


[Site "https://www.chess.com"]